Cogmind - Beta 15 --- EXPLORER MODE // 2025.08.18 @ 21:01:16 Player: Aydz Result: Self-destructed Performance ------------- Evolutions (3) 1500 Regions Visited (5) 1000 Robots Destroyed (120) 600 Value Destroyed (4619) 4619 Prototype IDs (31) 620 Alien Tech Used (0) 0 Bonus (282) 282 TOTAL SCORE: 8621 Bonus ------- High Alert Combat Kills 49 Follower Combat Kills 33 Entered Garrisons 200 Cogmind --------- Core Integrity 612/700 Matter 230/300 Energy 494/800 System Corruption 2% Temperature Cool (0) Movement Treading (241) Ox1 Location -7/Factory Parts ------- > --- POWER (1) -------- Hybrid Deuterium Engine > --- PROPULSION (4) --- Armored Treads Armored Treads Advanced Treads Medium Treads > --- UTILITY (7) ------ Improved Cooling System Huge Storage Unit Improved Signal Interpreter Improved Terrain Scan Processor Advanced Targeting Computer Particle Charger Hardened Medium Armor Plating > --- WEAPON (2) ------- Particle Cannon Particle Cannon > --- INVENTORY (25) --- Hybrid Deuterium Engine Hybrid Deuterium Engine Hybrid Deuterium Engine Meta Core Armored Treads Cesium-ion Thruster Advanced Visual Processing Unit Recalibrator Power Bank Improved Spread Laser Heavy Particle Cannon Ion Cannon Minigun Flak Cannon Flak Cannon Flak Cannon Mini Assault Cannon Bore Cannon Enhanced Flamer Peak State ------------ > --- POWER ------------ Hybrid Deuterium Engine > --- PROPULSION ------- Armored Treads Armored Treads Armored Treads Medium Treads > --- UTILITY ---------- Huge Storage Unit Advanced Visual Processing Unit Improved Sensor Array Signal Interpreter Improved Terrain Scan Processor Advanced Targeting Computer Hardened Medium Armor Plating > --- WEAPON ----------- Mini Assault Cannon Bore Cannon > --- INVENTORY -------- Hybrid Deuterium Engine Hybrid Deuterium Engine Hybrid Deuterium Engine Meta Core Advanced Treads Cesium-ion Thruster Improved Cooling System Improved Cooling System Advanced Visual Processing Unit Recalibrator Power Bank Particle Cannon Particle Cannon Ion Cannon Minigun Flak Cannon Flak Cannon Flak Cannon Enhanced Flamer [Rating: 51] Favorites ----------- Power Heavy Ion Engine Engine Heavy Ion Engine Propulsion Armored Treads Treads Armored Treads Leg Improved Aluminum Leg Wheel Subdweller Monowheel Utility Targeting Computer Device Improved Sensor Array Storage Medium Storage Unit Processor Targeting Computer Protection Hardened Medium Armor Plating Weapon Minigun Energy Gun Medium Laser Energy Cannon Particle Cannon Ballistic Gun Minigun Ballistic Cannon Battle Cannon Build | -11 -10 -10 -8 -8 -7 ------- Run | Yrd Mat Sub Mat Gar Fac Slots Evolved 7 | . 1 . 4 . 2 Power . | . . . . . . Propulsion 2 | . . . 2 . . Utility 5 | . 1 . 2 . 2 Weapon . | . . . . . . Parts Attached 63 | 7 3 10 24 2 17 Power 4 | 1 1 . 2 . . Engine 4 | 1 1 . 2 . . Core . | . . . . . . Reactor . | . . . . . . Propulsion 20 | 2 . 4 12 . 2 Treads 11 | 2 . . 7 . 2 Leg 5 | . . . 5 . . Wheel 4 | . . 4 . . . Hover . | . . . . . . Flight . | . . . . . . Utility 21 | 2 2 . 6 2 9 Device 5 | . 1 . 1 1 2 Storage 2 | 1 . . 1 . . Processor 8 | . 1 . 1 . 6 Hackware . | . . . . . . Protection 6 | 1 . . 3 1 1 Artifact . | . . . . . . Weapon 18 | 2 . 6 4 . 6 Energy Gun 5 | 2 . 1 1 . 1 Energy Cannon 2 | . . . . . 2 Ballistic Gun 3 | . . 2 1 . . Ballistic Cannon 8 | . . 3 2 . 3 Launcher . | . . . . . . Special Weapon . | . . . . . . Impact Weapon . | . . . . . . Slashing Weapon . | . . . . . . Piercing Weapon . | . . . . . . Special Melee Weapon . | . . . . . . Unidentified Prototypes 3 | . 1 . . . 2 Parts Lost 5 | . . 3 . . 2 Power . | . . . . . . Propulsion 1 | . . 1 . . . Utility 3 | . . 1 . . 2 Weapon 1 | . . 1 . . . Highest Loss Streak 2 | . . 2 . . 1 To Critical Strikes 1 | . . . . . 1 Average Backups 12 | . 4 9 11 20 19 Power 1 | . . 1 1 3 3 Propulsion 1 | . . . 1 3 2 Utility 2 | . 1 2 1 4 4 Weapon 6 | . 1 5 6 8 9 Tool/Special . | . . . . . . Unused Backups 24 | . 1 . 8 . 15 Power 6 | . 1 . 2 . 3 Propulsion 1 | . . . . . 1 Utility 3 | . . . . . 3 Weapon 13 | . . . 6 . 7 Tool/Special 1 | . . . . . 1 Average Slot Usage (%) 98 | . 98 97 98 99 97 Engine 9 | . 12 12 8 8 7 Treads 23 | . 24 17 22 32 28 Leg 3 | . . . 10 . . Wheel 1 | . . 6 . . . Device 5 | . 1 . 7 8 9 Storage 9 | . 12 12 8 8 7 Processor 15 | . 10 12 15 16 22 Protection 9 | . 11 10 7 8 8 Energy Gun 5 | . 24 5 . 8 1 Energy Cannon 1 | . . . . . 9 Ballistic Gun 6 | . . 1 12 8 1 Ballistic Cannon 5 | . . 17 3 . 1 Peak Build Rating 51 | 7 11 21 39 41 51 Average Rating 29 | 5 9 14 33 40 47 On Entrance 19 | . 7 11 21 39 41 Naked Turns . | . . . . . . Heaviest Build 109 | 22 25 27 107 104 109 Greatest Support 90 | 40 40 40 82 82 90 Greatest Overweight (x) 8 | 3 8 1 1 1 1 Average Overweight (x) . | . . . . 1 1 Largest Inventory Capacity 25 | 10 10 10 25 25 25 Average Capacity 16 | 8 10 10 16 25 25 Most Carried 24 | 1 7 10 19 21 24 Average Carried 12 | . 4 9 11 20 19 Final Capacity 25 | 10 10 10 25 25 25 Final Carried 21 | 1 7 10 19 21 19 Class Distribution -------------------- 95% | Hacker-Mutant 4% | Hacker-Skirmisher Dominant Class ---------------- Hacker-Mutant | -10/Materials Hacker-Mutant | -10/Subcaves Hacker-Mutant | -8/Materials Hacker-Mutant | -8/Garrison Hacker-Mutant | -7/Factory Resources | -11 -10 -10 -8 -8 -7 ----------- Run | Yrd Mat Sub Mat Gar Fac Matter Collected 3014 | 267 33 666 1397 412 239 Remotely . | . . . . . . Salvage Created 4549 | 172 140 353 1983 972 929 Parts 236 | 11 11 26 94 55 39 Haulers Intercepted 4 | . . . 3 . 1 Recyclers Shooed . | . . . . . . Parts Field Recycled . | . . . . . . Retrieved Matter . | . . . . . . Parts Self-Destructed . | . . . . . . Prevented . | . . . . . . Kills | -11 -10 -10 -8 -8 -7 ------- Run | Yrd Mat Sub Mat Gar Fac Combat Hostiles Destroyed 98 | . 6 17 33 23 19 Guns 62 | . 6 7 25 23 1 Cannons 36 | . . 10 8 . 18 Classes Destroyed 16 | 2 2 2 6 2 2 Worker 1 | . . . . . 1 Builder 1 | . . . 1 . . Tunneler 5 | 5 . . . . . Hauler 4 | . . . 3 . 1 Recycler 1 | 1 . . . . . Operator 2 | . . . 1 . 1 Watcher 8 | . 3 . 5 . . Swarmer 24 | . 6 5 . 9 4 Grunt 38 | . . 2 20 7 9 Brawler 3 | . . . 1 1 1 Duelist 1 | . . . . 1 . Sentry 15 | . . . 10 4 1 Demolisher 1 | . . . . 1 . Hunter 4 | . . . 2 . 2 Programmer 2 | . . . . . 2 Subdweller 10 | . . 10 . . . Best Kill Streak 7 | 6 4 5 5 7 3 Combat Bots Only 7 | . 2 5 5 7 3 Max Kills in Single Turn 2 | 1 2 1 2 2 2 Gunslinging 1 | . 1 . 1 1 . Exploded . | . . . . . . Melee . | . . . . . . Uniques/NPCs Destroyed . | . . . . . . Combat | -11 -10 -10 -8 -8 -7 -------- Run | Yrd Mat Sub Mat Gar Fac Hostile Shots Fired 536 | . 16 99 167 124 130 Missed 152 | . 5 42 39 33 33 Hits 384 | . 11 57 128 91 97 Melee 11 | . . . . 5 6 Projectile 373 | . 11 57 128 86 91 AOE 5 | . . . . 5 . Critical Strikes 18 | . . . 6 7 5 Damage Taken 3549 | . 50 485 1273 821 920 Core 262 | . 3 38 123 10 88 Absorbed by Shields . | . . . . . . Ignored by Resistances 2182 | . 38 300 772 511 561 Regen/Repaired (Parts) 728 | . 91 . 178 . 459 Core Remaining (%) 86 | 100 . 83 . 75 . Volleys Fired 368 | 11 13 74 125 80 65 Largest 2 | 2 2 2 2 2 2 Hottest 136 | 100 100 100 94 94 136 Shots Fired 733 | 22 26 145 250 159 131 Gun 484 | 22 26 38 223 159 16 Cannon 249 | . . 107 27 . 115 Launcher . | . . . . . . Special . | . . . . . . Kinetic 450 | . . 111 244 79 16 Thermal 283 | 22 26 34 6 80 115 Explosive . | . . . . . . Electromagnetic . | . . . . . . Robot Hit Streak 44 | 12 18 41 38 35 44 Robot Miss Streak 2 | 1 1 1 2 2 2 Penetration Max . | . . . . . . Secondary Targets 12 | . 3 1 3 5 . Max Gunslinging Chain 1 | . 1 1 1 1 . Shots Hit Robots 546 | 18 22 85 207 104 110 Core Hits 214 | 7 9 32 83 44 39 Critical Kills 1 | . . . . 1 . Critical Parts Destroyed 4 | . . . 2 . 2 Critical Strikes 14 | 2 1 5 3 1 2 Burn 6 | 2 1 2 1 . . Destroy 5 | . . . 2 1 2 Blast 3 | . . 3 . . . Melee Attacks . | . . . . . . Impact . | . . . . . . Slashing . | . . . . . . Piercing . | . . . . . . Sneak Attacks . | . . . . . . Combat Hostiles . | . . . . . . Follow-up Attacks . | . . . . . . Damage Inflicted 10110 | 224 282 1520 3865 1876 2343 Guns 6420 | 224 279 438 3264 1876 339 Cannons 3687 | . . 1082 601 . 2004 Explosions . | . . . . . . Melee . | . . . . . . Ramming 3 | . 3 . . . . Kinetic 5830 | . . 1082 3747 742 259 Thermal 4277 | 224 279 438 118 1134 2084 Explosive . | . . . . . . Electromagnetic . | . . . . . . Impact . | . . . . . . Slashing . | . . . . . . Piercing . | . . . . . . Highest Corruption 2 | . . . 2 2 2 Average Corruption 1 | . . . 1 2 1 Corruption Purged . | . . . . . . Corruption Blocked . | . . . . . . Effects 59 | . . . 23 25 11 Message Errors 11 | . . . 5 4 2 Matter Fused 14 | . . . 4 9 1 Heat Flow Errors 10 | . . . 4 4 2 Energy Discharges 9 | . . . 5 1 3 Parts Fused 2 | . . . . 2 . Data Loss (minor) 8 | . . . 4 3 1 Data Loss (major) 2 | . . . . 1 1 Misfires 1 | . . . . . 1 Alerts 1 | . . . 1 . . Weapon Failures 1 | . . . . 1 . Overload Shots . | . . . . . . Overflow Damage 18 | . . 5 . . 13 Projectiles 18 | . . 5 . . 13 Explosions . | . . . . . . Melee . | . . . . . . Knockbacks 19 | . . 10 7 . 2 Impact . | . . . . . . Kinetic 18 | . . 10 6 . 2 Secondary 1 | . . . 1 . . Self-Inflicted Damage . | . . . . . . Shots . | . . . . . . Rammed 1 | . 1 . . . . Targets Rammed 1 | . 1 . . . . Kicked . | . . . . . . Crushed . | . . . . . . Highest Temperature 405 | 240 288 6 270 405 224 Average Temperature 70 | 74 95 3 52 119 59 Received Heat Transfer 1755 | . . 171 873 414 297 Siege Activations . | . . . . . . Martial Activations . | . . . . . . Shielding Activations . | . . . . . . Robots Disrupted . | . . . . . . Combat Hostiles . | . . . . . . Robots Corrupted . | . . . . . . Combat Hostiles . | . . . . . . Parts Fried . | . . . . . . Impact Corruptions . | . . . . . . Robots Melted . | . . . . . . Combat Hostiles . | . . . . . . Parts Melted 20 | . 3 4 . 1 12 Heat Transferred 9170 | 814 888 1289 296 2220 3663 Parts Sabotaged . | . . . . . . Parts Stolen . | . . . . . . Parts Stripped . | . . . . . . Power Chain Reactions . | . . . . . . Alert | -11 -10 -10 -8 -8 -7 ------- Run | Yrd Mat Sub Mat Gar Fac Maximum Alert Level 3 | . . . . 3 1 Low Security (%) 85 | 100 100 . 100 22 89 Level 1 6 | . . . . 26 10 Level 2 5 | . . . . 34 . Level 3 2 | . . . . 16 . Level 4 . | . . . . . . Level 5 . | . . . . . . High Security . | . . . . . . Max Security . | . . . . . . Peak Influence 849 | 10 78 . 100 849 330 Initial 330 | . 2 . . 9 330 Average 85 | 2 5 . 8 417 61 Influence Increases 2912 | 30 199 235 1020 880 548 Destroy 0b10 Robot/C 1780 | . 120 140 660 480 380 Destroy 0b10 Robot/NC 115 | 30 15 . 50 5 15 Destroy Leader 394 | . 36 20 216 40 82 Allied During Kill 1 | . . . . 1 . Successful Hack 129 | . 28 . 42 5 54 Disable Machine 8 | . . . 4 4 . Anti-Garrison Action 300 | . . . . 300 . Destroy Structure 35 | . . . 3 30 2 Lose Combat Pursuer 150 | . . 75 45 15 15 Influence Decreases 2912 | 25 204 235 999 52 1397 Entered New Map 534 | . 3 . . 12 519 Time Decay 2328 | 25 201 235 999 . 868 Lost Part 10 | . . . . . 10 Lost Ally 40 | . . . . 40 . Squads Dispatched 13 | . . . 5 . 8 Investigation 5 | . . . 3 . 2 Extermination 3 | . . . . . 3 Reinforcement 5 | . . . 2 . 3 Assault . | . . . . . . Garrison . | . . . . . . Intercept . | . . . . . . Searches Triggered . | . . . . . . Construction Impeded . | . . . . . . Haulers Reinforced 1 | . . . . . 1 Active Scanning Responses . | . . . . . . Cargo Convoy Interrupts . | . . . . . . Stealth | -11 -10 -10 -8 -8 -7 --------- Run | Yrd Mat Sub Mat Gar Fac Distress Signals 4 | . 1 . 2 . 1 Communications Jammed . | . . . . . . Distress Signals . | . . . . . . Times Spotted 121 | . 8 21 46 26 20 Peak Tracking Total 6 | . 3 6 5 6 3 Tactical Retreats 6 | . . 2 2 1 1 Traps | -11 -10 -10 -8 -8 -7 ------- Run | Yrd Mat Sub Mat Gar Fac Traps Triggered 15 | . 3 . 3 7 2 Indirectly . | . . . . . . Trap Hack Attempts . | . . . . . . Triggered . | . . . . . . Disarmed . | . . . . . . Reprogrammed . | . . . . . . Reused . | . . . . . . Traps Extracted . | . . . . . . Installed . | . . . . . . Triggered . | . . . . . . Machines | -11 -10 -10 -8 -8 -7 ---------- Run | Yrd Mat Sub Mat Gar Fac Machines Disabled 6 | . . 1 1 4 . Max in Single Turn 1 | . . 1 1 1 . Garrison Relay 3 | . . . . 3 . Machines Repaired . | . . . . . . Machines Dismantled . | . . . . . . Machines Sabotaged . | . . . . . . Overloaded Fab Kills . | . . . . . . Hacking | -11 -10 -10 -8 -8 -7 --------- Run | Yrd Mat Sub Mat Gar Fac Machines Accessed 38 | . 9 2 16 3 8 Terminals 24 | . 7 . 10 3 4 Fabricators . | . . . . . . Repair Stations 4 | . 1 . 2 . 1 Recycling Units 6 | . 1 . 2 . 3 Scanalyzers 1 | . . . 1 . . Garrison Access 1 | . . . 1 . . Total Hacks 129 | . 35 4 62 6 22 Successful 94 | . 29 4 46 1 14 Failed 35 | . 6 . 16 5 8 Catastrophic 3 | . 2 . . . 1 Database Lockouts . | . . . . . . Manual 78 | . 25 . 38 3 12 Terminals 88 | . 30 . 42 6 10 Fabricators . | . . . . . . Repair Stations 15 | . 4 . 7 . 4 Recycling Units 15 | . 1 . 6 . 8 Scanalyzers 6 | . . . 6 . . Garrison Access 1 | . . . 1 . . Terminal Hacks 31 | . 10 4 15 1 1 Record 3 | . . 3 . . . Prototype ID Bank 12 | . . . 12 . . Open Door 1 | . . . . 1 . Open DSF 1 | . . . . . 1 Emergency Access Points 2 | . 2 . . . . Machine Index 1 | . 1 . . . . Terminal Index 3 | . 2 . 1 . . Alert Level 2 | . 1 . 1 . . Hauler Manifests 2 | . 1 . 1 . . Registered Components 1 | . 1 . . . . Zone Layout 2 | . 2 . . . . Proto ID Catalog 1 | . . 1 . . . Fabricator Hacks . | . . . . . . Repair Station Hacks 14 | . 4 . 6 . 4 Scan Component 7 | . 2 . 3 . 2 Repair 7 | . 2 . 3 . 2 Recycling Unit Hacks 5 | . 1 . 2 . 2 Retrieve Components 5 | . 1 . 2 . 2 Scanalyzer 6 | . . . 6 . . Insert Component 3 | . . . 3 . . Analyze 3 | . . . 3 . . Garrison Access Hacks 1 | . . . 1 . . Unlock Access 1 | . . . 1 . . Unauthorized Hacks 37 | . 14 . 16 . 7 Terminals 34 | . 14 . 16 . 4 Botnet 18 | . 7 . 9 . 2 Operators 2 | . . . 1 . 1 Skim 14 | . 7 . 6 . 1 Fabricators . | . . . . . . Repair Stations . | . . . . . . Recycling Units 3 | . . . . . 3 Reject 2 | . . . . . 2 Recyclers 1 | . . . . . 1 Scanalyzers . | . . . . . . Garrison Access . | . . . . . . Data Cores Recovered . | . . . . . . Used . | . . . . . . Hacking Detections 31 | . 8 . 14 2 7 Full Trace Events 6 | . 1 . 3 1 1 Feedback Events . | . . . . . . Feedback Blocked . | . . . . . . Robot Schematics Acquired . | . . . . . . Robots Built . | . . . . . . Authchips . | . . . . . . Time . | . . . . . . Total Robot Build Rating . | . . . . . . Part Schematics Acquired 3 | . . . 3 . . Parts Built . | . . . . . . Authchips . | . . . . . . Time . | . . . . . . Total Part Build Rating . | . . . . . . Parts Repaired 7 | . 2 . 3 . 2 Time 242 | . 52 . 114 . 76 Parts Recycled . | . . . . . . Recycled Matter . | . . . . . . Retrieved Matter . | . . . . . . Retrieved Components 30 | . 10 . 18 . 2 Parts Scanalyzed 3 | . . . 3 . . Part Schematics Acquired 3 | . . . 3 . . Parts Damaged 1 | . . . 1 . . Bothacking | -11 -10 -10 -8 -8 -7 ------------ Run | Yrd Mat Sub Mat Gar Fac Used RIF Installer . | . . . . . . Robots Hacked . | . . . . . . Non-combat . | . . . . . . Combat . | . . . . . . Robot Hacks Applied . | . . . . . . Relay Couplers Released 11 | . . . . 11 . Machine Destruction 11 | . . . . 11 . Fabnet Peak Effective % . | . . . . . . Robots Rewired . | . . . . . . Allies Hacked . | . . . . . . Hacks Repelled . | . . . . . . Allies | -11 -10 -10 -8 -8 -7 -------- Run | Yrd Mat Sub Mat Gar Fac Total Allies 2 | . . . . 2 . Largest Group 2 | . . . . 2 . Highest-Rated Group 70 | . . . . 70 . Highest-Rated Ally 39 | . . . . 39 . Initial Warlord ECA Mod 4 | . . . . . 4 Total Orders . | . . . . . . Ally Attacks 12 | . . . . 12 . Total Damage 142 | . . . . 142 . Kills 1 | . . . . 1 . Allies Corrupted . | . . . . . . Allies Melted . | . . . . . . Intel | -11 -10 -10 -8 -8 -7 ------- Run | Yrd Mat Sub Mat Gar Fac Active Infowar (turns) 6221 | . 107 114 4135 295 1570 Optics 1546 | . . . . . 1546 Sensors 5231 | . . . 3929 295 1007 Terrain 439 | . 107 114 218 . . Robot Analysis Total . | . . . . . . Derelict Logs Recovered 3 | . . 3 . . . Drone Launches . | . . . . . . Drone Recoveries . | . . . . . . Exploration | -11 -10 -10 -8 -8 -7 ------------- Run | Yrd Mat Sub Mat Gar Fac Turns Passed 11083 | 111 1277 2293 4173 1436 1793 Spaces Moved 5375 | 48 711 1461 2073 484 598 Core 13 | 12 1 . . . . Treads 3969 | 36 710 888 1253 484 598 Legs 774 | . . . 774 . . Wheels 619 | . . 573 46 . . Hover . | . . . . . . Flight . | . . . . . . Fastest Speed 50 | 50 160 95 110 243 241 Average Speed 175 | 141 160 140 170 243 245 Slowest Speed 450 | 200 450 240 247 243 247 Overloaded Moves . | . . . . . . Propulsion Burnouts . | . . . . . . Robots Hopped . | . . . . . . Potential Cave-ins . | . . . . . . Cave-ins Triggered . | . . . . . . Exploration Rate (%) 60 | 3 98 79 97 68 18 Regions Visited 5 Branch Regions 1 Pre-discovered Areas 3 | . . 2 1 . . Known Exits Taken 4 | 1 1 1 1 . . Unknown Exits Taken . | . . . . . . Scrap Searched 18 | . . 18 . . . Spaces Dug 9 | . . 9 . . . Terrain Destroyed 12 | . . 11 1 . . Melee . | . . . . . . Projectile 12 | . . 11 1 . . AOE . | . . . . . . Terrain Rammed . | . . . . . . Walls Destroyed . | . . . . . . Machines Disabled . | . . . . . . Actions | -11 -10 -10 -8 -8 -7 --------- Run | Yrd Mat Sub Mat Gar Fac Total 6335 | 66 815 1561 2501 599 793 Wait 399 | . 69 2 219 20 89 Move 5371 | 47 710 1460 2073 483 598 Hop . | . . . . . . Pick Up 42 | 1 7 6 23 1 4 Fast Attach 54 | 7 11 6 18 1 11 Attach 8 | . 1 2 1 . 4 Detach 2 | . 1 . . . 1 Swap 24 | . . 3 11 2 8 Drop 54 | . 2 8 31 . 13 Fire 368 | 11 13 74 125 80 65 Melee . | . . . . . . Ram . | . . . . . . Kick . | . . . . . . Crush 1 | . 1 . . . . Escape Stasis 12 | . . . . 12 . Rewire . | . . . . . . Trap . | . . . . . . Miscellaneous . | . . . . . . Route ------- -11/Scrapyard -10/Materials (discovered 5 exits: *Mat x3 / *Min / *Sub) -10/Subcaves (discovered 3 exits: *Mat x2 / *Rec) -8/Materials (discovered 4 exits: *Fac x3 / Gar) -8/Garrison (discovered 3 exits: *Fac x3) -7/Factory History --------- Turn | Location | Event 24 | -11/Scrapyard | Identified exit to Materials 24 | -11/Scrapyard | Discovered exit to Materials (range 15) 112 | -11/Scrapyard | Entered Materials 112 | -10/Materials | Evolved 1 slot: Utility x1 259 | -10/Materials | Identified exit to Mines 259 | -10/Materials | Discovered exit to Mines (range 13) 317 | -10/Materials | Build established: Hacker-Mutant 460 | -10/Materials | Identified exit to Materials 460 | -10/Materials | Discovered exit to Materials (range 16) 768 | -10/Materials | Discovered exit to Materials (range 16) 811 | -10/Materials | Identified exit to Subcaves 811 | -10/Materials | Learned location of 1 exit from Materials 948 | -10/Materials | Learned location of 3 exits from Materials 1093 | -10/Materials | Repaired Lgt. Armor Plating 1121 | -10/Materials | Repaired Lgt. Treads 1389 | -10/Materials | Entered Subcaves 1390 | -10/Subcaves | Identified exit to Materials 1522 | -10/Subcaves | Visited Clippyterm 1527 | -10/Subcaves | Learned Factory garrison access intel 1831 | -10/Subcaves | Visited 4L-MR0's lab 1870 | -10/Subcaves | Found Meta Core 2132 | -10/Subcaves | Learned location of Storage (-7) 2307 | -10/Subcaves | Ambushed by Subdweller buried in earth 2815 | -10/Subcaves | Learned location of 1 exit from Materials 3249 | -10/Subcaves | Learned location of Zion (-7) 3249 | -10/Subcaves | Met a Zionite searching for "candidates" 3282 | -10/Subcaves | Identified exit to Recycling 3282 | -10/Subcaves | Discovered exit to Recycling (range 11) 3338 | -10/Subcaves | Disturbed a concealed Subdweller 3439 | -10/Subcaves | A Subdweller sparked back to life 3439 | -10/Subcaves | A Subdweller sparked back to life 3464 | -10/Subcaves | Found Power Bank 3481 | -10/Subcaves | Shifting Twisted Machinery released Barrage Gun 3486 | -10/Subcaves | Shifting Twisted Machinery released Mak. Power Source 3682 | -10/Subcaves | Entered Materials 3682 | -8/Materials | Evolved 4 slots: Propulsion x2, Utility x2 3683 | -8/Materials | Identified exit to Factory 4208 | -8/Materials | Repaired Hrd. Medium Armor Plating 5306 | -8/Materials | Learned location of 1 exit from Lower Caves 5381 | -8/Materials | Learned Factory fabricator intel 5446 | -8/Materials | Learned Storage trap positions 5550 | -8/Materials | Learned Factory terminal intel 5619 | -8/Materials | Learned location of Lower Caves (-6) 5659 | -8/Materials | Learned location of 1 exit from Lower Caves 5771 | -8/Materials | Learned 4 Lower Caves zone layouts 6924 | -8/Materials | Repaired Minigun 6964 | -8/Materials | Repaired Imp. Sensor Array 7855 | -8/Materials | Identified exit to Garrison 7855 | -8/Materials | Entered Garrison 7867 | -8/Garrison | Triggered checkpoint 7939 | -8/Garrison | Triggered checkpoint 8197 | -8/Garrison | Destroyed 7 combat bots 8201 | -8/Garrison | Triggered checkpoint 8457 | -8/Garrison | Discovered exit to Factory (range 12) 8495 | -8/Garrison | Rescued a captive Derelict 8560 | -8/Garrison | Garrison Relay disabled 8582 | -8/Garrison | Garrison Relay disabled 8699 | -8/Garrison | Triggered checkpoint 8798 | -8/Garrison | Discovered exit to Factory (range 15) 8899 | -8/Garrison | Triggered checkpoint 9133 | -8/Garrison | Triggered checkpoint 9188 | -8/Garrison | Discovered exit to Factory (range 5) 9234 | -8/Garrison | Garrison Relay disabled 9291 | -8/Garrison | Entered Factory 9291 | -7/Factory | Evolved 2 slots: Utility x2 9292 | -7/Factory | Loaded intel: 25 terminal locations 9293 | -7/Factory | Loaded intel: 6 fabricator locations 9294 | -7/Factory | Loaded intel: 3 garrison access locations 9598 | -7/Factory | Build established: Hacker-Skirmisher 10045 | -7/Factory | Build established: Hacker-Mutant 10927 | -7/Factory | Repaired Hrd. Medium Armor Plating 10967 | -7/Factory | Repaired Arm. Treads 11084 | -7/Factory | Self-destructed Last Messages --------------- Ready to Repair: Arm. Treads Rating: 3 Time: 38 >>Repair Repairing Arm. Treads... ETC: 38 10967_ Repair station completes Arm. Treads repairs. 10998_ K-01 Serf cleans the Fusion Modulator. 11041_ O-24 Administrator: "IFF HANDSHAKE FAILED. SECURING TERMINAL." 11044_ O-24 Administrator uses terminal to summon reinforcements. 11044_ ALERT: Hostiles spotted, dispatching reinforcements to Terminal F017. 11044_ O-24 Administrator locks terminal. 11046_ O-24 Administrator destroyed. 11056_ Connecting with Terminal... 11056_ ALERT: Suspicious activity at Terminal F011. Dispatching Investigation squad. 11059_ GB5CW7HI&52HQCQ/4&7|LV>8U#8B/SV,Y37 11084_ Connecting with Recycling Unit... Map ----- +----------------------------------------------------+ | ???????????????????????????????""????????????????? | | ?????????????????????????????????????????????????? | | ?????????????????????????????????????????????????? | | ?????????????????????????????????????????????????? | | ?????????????????????????????????????????????????? | | ?????????????????????????????????????????????????? | | ?????????????????????????????????????????????????? | | ?????????????????????????????????????????????????? | | ?????????????????????????????????????????????????? | | ?????????????????????????????????????????????????? | | ?????????????????????????????????????????????????? | | ?????????????????????????????????????????????????? | | ?????????????????????????????????????????????????? | | ?????????????????????????????????????????????????? | | ?????????????????????????????????????????????????? | | ?????????????????????????????????????????????????? | | ?????????????????????????????????????????????????? | | ?????????????????????????###########?????????????? | | ?????????????????????????# """ #?????????????? | | ?????????????????????????# === "T" #?????????????? | | ?????????????????????????# === #?????????????? | | ????????????? ???????????# === #?????????????? | | ????????????? #?################+### "" #???????? | | ????????????# #?# r + %T +???????? | | ????????????# #?# """ ### ### #???????? | | ????????????# #?# @Y" #?# #???????????????? | | ???########## ### """ #?# #???????????????? | | ???# # #?# #???????????????? | | ???# # ### #####???????????? | | ???# %+ """"" + +???????????? | | ???# # r """"" ## #???????????? | | ???# # """ ## #???????????? | | ???# # ## #???????????? | | ???# # ???? + +???????????? | | ???# #????? ## ####???????????? | | ???# #??????######## #??????????????? | | #### #?????????????# #??############# | | # #?????????????# ##?# [ | | "" # #?????????????# T#?# """ | | "" # #?#########???# #?# = R" | | "" # ###"""T"""##### #### """ | | "" + % # | | "" # ^ ^ % % # | | "" + + """ """ | | "" # ^""" """ """ """ """ # """ """ | | [= # """ """ """ """ """ # """ """ | | =" # """ """ """ """ """ ###+#### "" "" | | Y" #^ # ?# "" "" | | "" # """ """ """ """ """ # ## | | #### %""" """ """ """ """ # ############## | +----------------------------------------------------+ Best States ------------- Heat Dissipation 61 Energy Generation 14 Energy Capacity 800 Matter Stores 300 Matter Capacity 300 Sight Range 20 Robot Scan Range 15 Terrain Scan Range 16 Terrain Scan Density 110 Armor Coverage 375 Resistance: KI 35 Resistance: TH 35 Resistance: EX 35 Resistance: EM 35 Resistance: I 35 Resistance: S 35 Resistance: P 35 Evasion (%) 55 Targeting Accuracy 14 Recoil Reduction 4 Particle Charging 15 Offensive Hacking 20 Item Schematics ----------------- Enh. Flamer | -8/Materials | Scanalyzed Flak Cannon | -8/Materials | Scanalyzed Hyb. Deuterium Engine | -8/Materials | Scanalyzed Robot Schematics ------------------ None Fabricated ------------ Nothing Repaired ---------- Lgt. Armor Plating | 53% | -10/Materials Lgt. Treads | 65% | -10/Materials Hrd. Medium Armor Plating | 53% | -8/Materials Minigun | 60% | -8/Materials Imp. Sensor Array | 18% | -8/Materials Hrd. Medium Armor Plating | 25% | -7/Factory Arm. Treads | 7% | -7/Factory Alien Tech Used ----------------- None Achievements -------------- Maximum Efficiency Challenges ------------ None Game ------ Seed ZioniteCarbideCompressor Manual? 0 Play Time 01:40:01 Cumulative 38.9 hours Start 2025.08.17 @ 18:05:23 End 2025.08.18 @ 21:01:16 Sessions 1 Manual Loads 0 Difficulty Explorer Special Mode None Game No. 6 Rogue 0 Adventurer 0 Explorer 6 Win Type - Total 0 Types 0/0/0/0/0/0/0/0/0/0 Lore% 16 Gallery% 19 Achievement% 24 Wizard Run 0 Options --------- Layout 0 ASCII 0 Keyboard 0 Movement Mouse Keybinds 0 Fullscreen 2 Font 24/Terminus Map View 76x50 Zoom Use 0% Tactical HUD 1 Map Filters NONE Filters NONE Steam 1 RUN: 5c8ca6c5-df20-4a02-a147-eeca7c105c13